fUSD/lending_fUSD_20250103
["ID","MTS","AMOUNT","RATE_DAILY","PERIOD"]
[347584024,1735927832250,-150.0,0.00010739,2]
[347584025,1735927832259,-150.0,0.00010959,2]
[347584026,1735927832269,-500.0,0.00011,4]
[347584027,1735927832278,-334.78694722,0.00011001,2]
[347584028,1735927832287,-116.86956065,0.00011039,2]
[347584029,1735927832299,-382.47043935,0.00011039,2]
[347584030,1735927832308,-1100.0,0.000111,4]
[347584031,1735927832318,-4.73851305,0.00011101,2]
[347584032,1735927832329,-497.88148695,0.00011101,2]
[347584033,1735927832338,-509.4,0.00011102,2]
[347584034,1735927832348,-492.93,0.00011103,2]
[347584035,1735927832358,-491.76,0.00011106,2]
[347584036,1735927832367,-508.74,0.00011111,2]
[347584037,1735927832377,-142.68310803,0.0001112,2]
[347584038,1735927832388,-357.83689197,0.0001112,2]
[347584039,1735927832397,-506.46,0.0001112,2]
[347584040,1735927832407,-497.58,0.00011137,2]
[347584041,1735927832417,-494.95,0.00011167,2]
[347584042,1735927832426,-749.18489617,0.000112,4]
[347584043,1735927832443,-950.81510383,0.000112,4]
[347584044,1735927832453,-499.82,0.00011217,2]
[347584045,1735927832463,-497.37,0.00011217,2]
[347584046,1735927832472,-497.07,0.00011217,2]
[347584047,1735927832482,-501.62,0.00011217,2]
[347584048,1735927832491,-496.79,0.00011217,2]
[347584049,1735927832500,-507.57,0.00011218,2]
[347584050,1735927832509,-507.84,0.00011218,2]
[347584051,1735927832518,-504.65,0.00011218,2]
[347584052,1735927832532,-499.99,0.00011218,2]
[347584053,1735927832541,-508.5,0.00011218,2]
[347584054,1735927832551,-505.56,0.00011218,2]
[347584055,1735927832560,-502.78,0.00011218,2]
[347584056,1735927832571,-497.97,0.00011256,2]
[347584057,1735927832580,-504.32,0.00011259,2]
[347584058,1735927832589,-501.09,0.00011264,2]
[347584059,1735927832599,-502.18,0.00011271,2]
[347584060,1735927832608,-152.0,0.00011272,3]
[347584061,1735927832618,-491.59,0.00011282,2]
[347584062,1735927832627,-2300.0,0.000113,4]
[347584063,1735927832637,-180.0,0.00011315,2]
[347584064,1735927832647,-1543.84430043,0.000114,4]
[347584065,1735927832659,-1356.15569957,0.000114,4]
[347584066,1735927832668,-166.98,0.00011427,2]
[347584067,1735927832677,-696.88,0.00011441,2]
[347584069,1735927832687,-500.0,0.000115,4]
[347584070,1735927832696,-2751.0,0.00011507,2]
[347584072,1735927832706,-500.0,0.000116,4]
[347584074,1735927832715,-771.63,0.00011641,2]
[347584076,1735927832724,-771.63,0.00011641,2]
[347584078,1735927832733,-297.269,0.0001168,2]
[347584080,1735927832743,-500.0,0.000117,4]
[347584082,1735927832752,-1000.0,0.00011765,2]
[347584084,1735927832762,-500.0,0.000118,4]
[347584086,1735927832772,-8023.0,0.00011815,2]
[347584088,1735927832781,-771.63,0.00011841,2]
[347584090,1735927832791,-436.79,0.00011878,2]
[347584092,1735927832800,-6187.99,0.000119,2]
[347584094,1735927832809,-1000.0,0.000119,2]
[347584096,1735927832818,-1140.0,0.000119,4]
[347584140,1735927833055,-1370.98000602,0.000119,2]
[347584142,1735927833065,-1370.98000585,0.00011934,2]
[347584144,1735927833075,-1370.98000585,0.00011969,2]
[347584146,1735927833085,-436.21,0.00011978,2]
[347584148,1735927833094,-508.16,0.00011979,2]
[347584150,1735927833104,-500.0,0.00011999,2]
[347584152,1735927833113,-598.96076293,0.00011999,2]
[347584154,1735927833123,-500.0,0.00011999,2]
[347584156,1735927833132,-549.73,0.00011999,2]
[347584158,1735927833142,-344.69978909,0.00011999,2]
[347584160,1735927833152,-500.0,0.00011999,2]
[347584162,1735927833161,-570.613372,0.00011999,2]
[347584164,1735927833171,-382.352356,0.00011999,2]
[347584165,1735927833180,-500.0,0.00011999,2]
[347584167,1735927833190,-500.0,0.00011999,2]
[347584169,1735927833199,-500.0,0.00011999,2]
[347584171,1735927833209,-500.0,0.00011999,2]
[347584174,1735927833219,-500.0,0.00011999,2]
[347584176,1735927833229,-500.0,0.00011999,2]
[347584177,1735927833238,-500.0,0.00011999,2]
[347584179,1735927833247,-500.0,0.00011999,2]
[347584181,1735927833256,-500.0,0.00011999,2]
[347584183,1735927833266,-500.0,0.00011999,2]
[347584185,1735927833275,-500.0,0.00011999,2]
[347584187,1735927833284,-500.0,0.00011999,2]
[347584189,1735927833293,-410.44,0.00011999,2]
[347584191,1735927833303,-500.0,0.00011999,2]
[347584193,1735927833312,-500.0,0.00011999,2]
[347584195,1735927833321,-500.0,0.00011999,2]
[347584197,1735927833330,-535.52,0.00011999,2]
[347584199,1735927833340,-500.0,0.00011999,2]
[347584201,1735927833349,-500.0,0.00011999,2]
[347584203,1735927833359,-582.22,0.00011999,2]
[347584205,1735927833369,-500.0,0.00011999,2]
[347584207,1735927833378,-500.0,0.00011999,2]
[347584209,1735927833388,-500.0,0.00011999,2]
[347584211,1735927833397,-500.0,0.00011999,2]
[347584213,1735927833406,-500.0,0.00011999,2]
[347584215,1735927833415,-500.0,0.00011999,2]
[347584217,1735927833425,-500.0,0.00011999,2]
[347584219,1735927833434,-500.0,0.00011999,2]
[347584221,1735927833443,-500.0,0.00011999,2]
[347584223,1735927833454,-500.0,0.00011999,2]
[347584225,1735927833463,-265.18767213,0.00011999,2]
[347584227,1735927833473,-500.0,0.00011999,2]
[347584229,1735927833482,-500.0,0.00011999,2]
[347584231,1735927833492,-500.0,0.00011999,2]
[347584233,1735927833502,-516.66,0.00011999,2]
[347584235,1735927833511,-660.17,0.00011999,2]
[347584237,1735927833520,-500.0,0.00011999,2]
[347584239,1735927833535,-500.0,0.00011999,2]
[347584241,1735927833544,-500.0,0.00011999,2]
[347584243,1735927833554,-500.0,0.00011999,2]
[347584245,1735927833563,-786.37,0.00011999,2]
[347584247,1735927833574,-500.0,0.00011999,2]
[347584249,1735927833583,-500.0,0.00011999,2]
[347584251,1735927833593,-500.0,0.00011999,2]
[347584253,1735927833602,-500.0,0.00011999,2]
[347584255,1735927833612,-4325.2002,0.00012,2]
[347584257,1735927833621,-506.52,0.00012,2]
[347584259,1735927833631,-450.0,0.00012,2]
[347584261,1735927833640,-450.0,0.00012,2]
[347584263,1735927833650,-25853.80213829,0.00012,2]
[347584266,1735927833669,-360.04704331,0.00012,2]
[347584268,1735927833681,-5856.97893899,0.00012,2]
[347584272,1735927833707,-279037.17187941,0.00012,2]
[347584274,1735927833717,-1370.98000585,0.00012003,2]
[347584276,1735927833728,-1370.98000585,0.00012038,2]
[347584278,1735927833738,-429.51484354,0.0001205,2]
[347584280,1735927833748,-1144.175,0.00012054,2]
[347584282,1735927833757,-1370.98000585,0.00012072,2]
[347584284,1735927833766,-500.0,0.00012079,2]
[347584286,1735927833776,-1100.0,0.00012088,2]
[347584288,1735927833785,-498.73,0.00012099,2]
[347584290,1735927833795,-10000.0,0.00012099,2]
[347584292,1735927833804,-13432.7560647,0.000121,2]
[347584293,1735927833816,-2984.55116844,0.000121,2]
[347584295,1735927833825,-1370.98000585,0.00012107,2]
[347584297,1735927833834,-1370.98000585,0.00012141,2]
[347584299,1735927833845,-5514.2602,0.0001217,2]
[347584301,1735927833854,-491.09,0.00012174,2]
[347584303,1735927833864,-1370.98000585,0.00012176,2]
[347584304,1735927833873,-3000.0,0.0001218,2]
[347584306,1735927833882,-172.18196127,0.00012199,2]
[347584308,1735927833891,-12726.8075,0.00012199,2]
[347584310,1735927833901,-168.8545,0.00012199,2]
[347584312,1735927833910,-29801.7711,0.000122,2]
[347584314,1735927833919,-218.65237002,0.000122,2]
[347584316,1735927833929,-157.77040214,0.000122,2]
[347584318,1735927833938,-186.73709842,0.000122,2]
[347584320,1735927833948,-13736.50219885,0.000122,2]
[347584322,1735927833957,-710.80744353,0.000122,2]
[347584323,1735927833967,-13736.50219883,0.00012207,2]
[347584324,1735927833978,-1370.98000585,0.0001221,2]
[347584325,1735927833987,-157.77040213,0.00012214,2]
[347584326,1735927833996,-13736.50219883,0.00012214,2]
[347584327,1735927834005,-1370.98000585,0.00012245,2]
[347584328,1735927834014,-500.0,0.0001225,2]
[347584329,1735927834023,-2000.0,0.0001225,2]
[347584330,1735927834032,-200.0,0.0001225,2]
[347584331,1735927834041,-527.95501032,0.00012269,2]
[347584332,1735927834050,-500.0,0.00012269,2]
[347584333,1735927834059,-500.0,0.00012269,2]
[347584334,1735927834068,-500.0,0.00012269,2]
[347584335,1735927834078,-500.0,0.00012269,2]
[347584336,1735927834087,-319.94169573,0.00012269,2]
[347584337,1735927834096,-500.0,0.00012269,2]
[347584338,1735927834104,-500.0,0.00012269,2]
[347584339,1735927834114,-582.79,0.00012269,2]
[347584340,1735927834123,-500.0,0.00012269,2]
[347584341,1735927834132,-500.0,0.00012269,2]
[347584343,1735927834142,-500.0,0.00012269,2]
[347584345,1735927834151,-500.0,0.00012269,2]
[347584347,1735927834160,-575.99,0.00012269,2]
[347584349,1735927834170,-500.0,0.00012269,2]
[347584351,1735927834180,-500.0,0.00012269,2]
[347584353,1735927834189,-500.0,0.00012269,2]
[347584355,1735927834198,-500.0,0.00012269,2]
[347584357,1735927834207,-500.0,0.00012269,2]
[347584359,1735927834217,-500.0,0.00012269,2]
[347584360,1735927834227,-500.0,0.00012273,2]
[347584363,1735927834236,-500.45343257,0.00012273,2]
[347584364,1735927834246,-500.0,0.00012273,2]
[347584366,1735927834255,-550.79192445,0.00012273,2]
[347584368,1735927834264,-255.86,0.00012273,2]
[347584370,1735927834275,-500.0,0.00012273,2]
[347584372,1735927834284,-570.613372,0.00012273,2]
[347584374,1735927834294,-382.352356,0.00012273,2]
[347584376,1735927834303,-500.0,0.00012273,2]
[347584378,1735927834312,-500.0,0.00012273,2]
[347584380,1735927834321,-500.0,0.00012273,2]
[347584382,1735927834331,-500.0,0.00012273,2]
[347584384,1735927834341,-298.62,0.00012273,2]
[347584386,1735927834350,-500.0,0.00012273,2]
[347584388,1735927834360,-500.0,0.00012273,2]
[347584390,1735927834369,-535.52,0.00012273,2]
[347584392,1735927834379,-500.0,0.00012273,2]
[347584394,1735927834389,-500.0,0.00012273,2]
[347584396,1735927834399,-500.0,0.00012273,2]
[347584398,1735927834408,-500.0,0.00012273,2]
[347584400,1735927834417,-500.0,0.00012273,2]
[347584402,1735927834427,-500.0,0.00012273,2]
[347584404,1735927834436,-516.66,0.00012273,2]
[347584406,1735927834445,-660.17,0.00012273,2]
[347584408,1735927834455,-500.0,0.00012273,2]
[347584410,1735927834465,-500.0,0.00012273,2]
[347584412,1735927834474,-500.0,0.00012273,2]
[347584414,1735927834484,-786.37,0.00012273,2]
[347584416,1735927834494,-500.0,0.00012273,2]
[347584418,1735927834504,-500.0,0.00012273,2]
[347584420,1735927834513,-500.0,0.00012273,2]
[347584422,1735927834525,-1370.98000585,0.00012279,2]
[347584424,1735927834536,-496.73,0.00012282,2]
[347584426,1735927834546,-500.0,0.00012298,2]
[347584428,1735927834555,-500.0,0.00012298,2]
[347584430,1735927834565,-500.0,0.00012298,2]
[347584432,1735927834574,-1087.91,0.00012298,2]
[347584434,1735927834585,-500.0,0.00012298,2]
[347584436,1735927834595,-500.0,0.00012298,2]
[347584438,1735927834605,-749.65,0.00012298,2]
[347584440,1735927834615,-500.0,0.00012298,2]
[347584442,1735927834624,-500.0,0.00012298,2]
[347584444,1735927834633,-500.0,0.00012298,2]
[347584446,1735927834643,-576.5,0.00012298,2]
[347584448,1735927834652,-338.21,0.00012298,2]
[347584450,1735927834661,-526.13,0.00012298,2]
[347584452,1735927834671,-152.78677783,0.00012299,2]
[347584454,1735927834680,-500.0,0.00012299,2]
[347584456,1735927834690,-500.0,0.00012299,2]
[347584458,1735927834699,-444.15162281,0.00012299,2]
[347584460,1735927834709,-200.0,0.00012299,2]
[347584462,1735927834720,-1103.0,0.00012299,2]
[347584464,1735927834730,-1103.0,0.00012299,2]
[347584466,1735927834740,-1103.0,0.00012299,2]
[347584467,1735927834750,-1103.0,0.00012299,2]
[347584469,1735927834759,-1103.0,0.00012299,2]
[347584472,1735927834769,-1103.0,0.00012299,2]
[347584474,1735927834778,-1103.0,0.00012299,2]
[347584475,1735927834787,-1103.0,0.00012299,2]
[347584477,1735927834797,-1103.0,0.00012299,2]
[347584479,1735927834807,-1103.0,0.00012299,2]
[347584482,1735927834817,-500.0,0.00012299,2]
[347584484,1735927834827,-158.0,0.00012299,30]
[347584486,1735927834836,-8945.0,0.00012299,2]
[347584488,1735927834845,-494.93,0.00012299,2]
[347584489,1735927834854,-638.0,0.00012299,2]
[347584491,1735927834863,-4639.86191719,0.000123,2]
[347584493,1735927834872,-104929.21815901,0.000123,2]
[347584494,1735927835104,-6865.75023366,0.000123,2]
[347584495,1735927835117,-568.17990878,0.000123,2]
[347584496,1735927835141,-2610256.32013834,0.000123,2]
[347584497,1735927835161,-1228.47,0.000123,2]
[347584500,1735927838165,-970.98361261,0.000122,2]
[347584501,1735927838178,-350.47507013,0.000122,2]
[347584502,1735927838189,-1321.45868274,0.00012207,2]
[347584503,1735927838199,-97928.06624713,0.000123,2]
[347584504,1735927838231,-207714.28896627,0.000123,2]
[347584505,1735927838244,-545.69999993,0.000123,2]
[347584506,1735927838256,-9990.0,0.000123,2]
[347584507,1735927838269,-6830.00002,0.000123,2]
[347584508,1735927838282,-344.1324579,0.000123,2]
[347584509,1735927838297,-79595.84804833,0.000123,2]
[347584510,1735927838309,-302.5407008,0.000123,2]
[347584511,1735927838453,-973.20048313,0.000123,2]
[347584673,1735927840113,-500.0,0.00011999,2]
[347584675,1735927840124,-2900.2452,0.000123,2]
[347584678,1735927840143,-500.0,0.00012273,2]
[347584680,1735927840153,-5120.0,0.000123,2]
[347584682,1735927840166,-799.4,0.000123,2]
[347584685,1735927840182,-20544.95627165,0.000123,2]
[347584688,1735927840198,-1176.6832589,0.000123,2]
[347584692,1735927840234,-500.0,0.00011999,2]
[347584694,1735927840244,-4192.7587,0.000123,2]
[347584697,1735927840259,-24557.4764284,0.000123,2]
[347584709,1735927840368,-574.68795249,0.000123,2]
[347584714,1735927840477,-500.0,0.00012273,2]
[347584715,1735927840487,-121952.82215825,0.000123,2]
[347584716,1735927840500,-1175.40000003,0.000123,2]
[347584717,1735927840511,-367.03000001,0.000123,2]
[347585020,1735927843235,-1213.45,0.00012214,2]
[347585042,1735927843335,-108.00868274,0.00012214,2]
[347585044,1735927843346,-270.77711896,0.00012298,2]
[347585045,1735927843359,-229.22288104,0.00012298,2]
[347585046,1735927843369,-640.08467732,0.000123,2]
[347585047,1735927843381,-1759.35999998,0.000123,2]
[347585048,1735927843394,-2124.4700145,0.000123,2]
[347585049,1735927843406,-2429.625,0.000123,2]
[347585050,1735927843419,-2422.0,0.000123,2]
[347585051,1735927843431,-15154.19434664,0.000123,2]
[347585052,1735927843458,-13896.3,0.000123,2]
[347585053,1735927843471,-1089.65,0.000123,2]
[347585054,1735927843483,-2211.8499999,0.000123,2]
[347585297,1735927846151,-163.032391,0.00011999,2]
[347585299,1735927846161,-255.64086832,0.000123,2]
[347585301,1735927846177,-35354.67193278,0.000123,2]
[347585302,1735927846279,-233028.74300187,0.000123,2]
[347585303,1735927846291,-569971.86135997,0.000123,2]
[347585304,1735927846303,-1371.93421536,0.000123,2]
[347585374,1735927900623,102.71761647,9.465e-05,2]
[347585375,1735927900645,616.92238353,9.465e-05,2]
[347585378,1735928103441,159.0,9.465e-05,30]
[347585379,1735928197559,200.0,0.0001,2]
[347585380,1735928217259,1260.0,0.0001,2]
[347585381,1735928296835,8195.0,0.00010458,2]
[347585382,1735928403701,159.01576264,9.465e-05,30]
[347585385,1735928630551,176.59,0.00010137,2]
[347585393,1735928855741,683.65,9.122e-05,2]
[347585404,1735929032433,-160.81,0.0001089,2]
[347585406,1735929032443,-250.0,0.00010894,2]
[347585407,1735929032452,-150.0,0.00010959,2]
[347585408,1735929032462,-200.0,0.00010968,2]
[347585409,1735929032471,-200.0,0.00010971,2]
[347585410,1735929032481,-200.0,0.00010974,2]
[347585411,1735929032492,-200.0,0.00010984,2]
[347585412,1735929032500,-400.0,0.00010986,2]
[347585413,1735929032511,-150.0,0.00011047,2]
[347585414,1735929032520,-150.0,0.00011047,2]
[347585415,1735929032529,-150.0,0.00011047,2]
[347585416,1735929032538,-1000.0,0.00011065,2]
[347585417,1735929032547,-300.0,0.00011286,2]
[347585418,1735929032556,-3892.0,0.00011287,2]
[347585419,1735929032565,-636.0,0.00011287,2]
[347585420,1735929032574,-158.916,0.00011287,2]
[347585421,1735929032583,-1172.0,0.00011287,2]
[347585422,1735929032593,-683.65,0.00011386,2]
[347585423,1735929032602,-509.98,0.00011447,2]
[347585424,1735929032611,-417.48907428,0.00011447,2]
[347585425,1735929032623,-80.76092572,0.00011447,2]
[347585426,1735929032633,-498.42,0.00011447,2]
[347585427,1735929032642,-493.77,0.00011447,2]
[347585428,1735929032651,-301.05,0.00011447,2]
[347585429,1735929032662,-508.79,0.00011448,2]
[347585430,1735929032671,-495.91,0.00011449,2]
[347585431,1735929032680,-502.53,0.0001145,2]
[347585432,1735929032690,-491.06,0.00011453,2]
[347585433,1735929032700,-508.9,0.00011458,2]
[347585434,1735929032709,-497.54,0.00011467,2]
[347585435,1735929032718,-497.47,0.00011483,2]
[347585436,1735929032727,-2751.0,0.00011507,2]
[347585437,1735929032736,-492.54,0.00011513,2]
[347585438,1735929032747,-507.07,0.00011565,2]
[347585439,1735929032756,-45.68928386,0.00011657,2]
[347585440,1735929032770,-463.98071614,0.00011657,2]
[347585441,1735929032779,-978.7,0.00011678,2]
[347585442,1735929032788,-436.79,0.00011678,2]
[347585443,1735929032798,-284.793,0.0001168,2]
[347585444,1735929032807,-429.51484354,0.00011813,2]
[347585445,1735929032816,-500.28,0.00011825,2]
[347585446,1735929032825,-150.68,0.00011878,2]
[347585447,1735929032834,-501.76,0.000119,2]
[347585448,1735929032843,-500.0,0.00011999,2]
[347585449,1735929032852,-500.0,0.00011999,2]
[347585450,1735929032861,-500.0,0.00011999,2]
[347585451,1735929032870,-500.0,0.00011999,2]
[347585452,1735929032880,-869.54,0.00011999,2]
[347585453,1735929032890,-500.0,0.00011999,2]
[347585454,1735929032901,-500.0,0.00011999,2]
[347585455,1735929032910,-500.0,0.00011999,2]
[347585456,1735929032919,-362.14199417,0.00011999,2]
[347585457,1735929032928,-625.71293834,0.00011999,2]
[347585459,1735929032937,-500.0,0.00011999,2]
[347585460,1735929032947,-500.0,0.00011999,2]
[347585461,1735929032956,-120.34899045,0.00011999,2]
[347585464,1735929032970,-399.35664139,0.00011999,2]
[347585466,1735929032980,-479.98,0.00011999,2]
[347585468,1735929032990,-291.58387561,0.00011999,2]
[347585472,1735929033025,-208.41612439,0.00011999,2]
[347585474,1735929033035,-227.58387561,0.00011999,2]
[347585475,1735929033046,-362.65612439,0.00011999,2]
[347585476,1735929033055,-601.03,0.00011999,2]
[347585477,1735929033064,-500.0,0.00011999,2]
[347585478,1735929033074,-500.0,0.00011999,2]
[347585479,1735929033083,-500.0,0.00011999,2]
[347585480,1735929033093,-500.0,0.00011999,2]
[347585482,1735929033103,-500.0,0.00011999,2]
[347585484,1735929033112,-500.0,0.00011999,2]
[347585486,1735929033122,-500.0,0.00011999,2]
[347585488,1735929033131,-435.76016171,0.00011999,2]
[347585490,1735929033143,-276.21083969,0.00011999,2]
[347585492,1735929033155,-129.5189986,0.00011999,2]
[347585494,1735929033165,-450.0,0.00012,2]
[347585496,1735929033175,-450.0,0.00012,2]
[347585498,1735929033185,-503.24,0.0001201,2]
[347585500,1735929033195,-150.0,0.00012027,2]
[347585502,1735929033204,-150.0,0.00012029,2]
[347585504,1735929033214,-150.0,0.00012036,2]
[347585506,1735929033223,-150.0,0.00012038,2]
[347585508,1735929033233,-150.0,0.00012038,2]
[347585510,1735929033244,-150.0,0.00012038,2]
[347585512,1735929033253,-150.0,0.00012047,2]
[347585514,1735929033262,-772.16407487,0.00012058,2]
[347585516,1735929033272,-150.0,0.00012066,2]
[347585518,1735929033281,-150.0,0.00012066,2]
[347585520,1735929033291,-915.34,0.00012079,2]
[347585522,1735929033300,-150.0,0.0001208,2]
[347585524,1735929033309,-150.0,0.00012083,2]
[347585526,1735929033320,-150.0,0.00012085,2]
[347585528,1735929033329,-1000.0,0.00012088,2]
[347585530,1735929033339,-150.0,0.00012091,2]
[347585532,1735929033348,-3312.0,0.000121,2]
[347585534,1735929033358,-150.0,0.00012107,2]
[347585536,1735929033366,-799.02429116,0.00012111,2]
[347585538,1735929033375,-150.0,0.0001212,2]
[347585540,1735929033385,-150.0,0.0001212,2]
[347585542,1735929033394,-150.0,0.00012121,2]
[347585544,1735929033404,-150.0,0.00012127,2]
[347585546,1735929033412,-150.0,0.00012129,2]
[347585547,1735929033422,-150.0,0.00012134,2]
[347585549,1735929033431,-150.0,0.00012145,2]
[347585551,1735929033440,-150.0,0.00012148,2]
[347585552,1735929033449,-150.0,0.00012149,2]
[347585554,1735929033458,-150.0,0.00012149,2]
[347585556,1735929033467,-194.97570884,0.0001215,2]
[347585558,1735929033477,-150.0,0.00012154,2]
[347585559,1735929033486,-150.0,0.00012156,2]
[347585561,1735929033497,-150.0,0.00012157,2]
[347585562,1735929033506,-150.0,0.00012157,2]
[347585563,1735929033515,-150.0,0.00012161,2]
[347585564,1735929033525,-150.0,0.00012169,2]
[347585565,1735929033534,-150.0,0.00012171,2]
[347585566,1735929033544,-150.0,0.00012173,2]
[347585567,1735929033554,-150.0,0.00012178,2]
[347585568,1735929033563,-3000.0,0.0001218,2]
[347585569,1735929033573,-150.0,0.00012186,2]
[347585570,1735929033795,-150.0,0.00012194,2]
[347585571,1735929033805,-150.0,0.00012195,2]
[347585572,1735929033815,-150.0,0.00012198,2]
[347585573,1735929033825,-7908.1785406,0.000122,2]
[347585574,1735929034036,-361.67562588,0.000122,2]
[347585575,1735929034047,-383.46181013,0.000122,2]
[347585578,1735929038275,-384.1494015,0.00011287,2]
[347585579,1735929038306,-840.00834718,0.00011287,2]
[347585580,1735929038318,-748.0000006,0.00011287,2]
[347585581,1735929038330,-433.55169523,0.00011287,2]
[347585582,1735929038342,-563.37776736,0.00011287,2]
[347585583,1735929038455,-6639.91278813,0.00011287,2]
[347585584,1735929038464,-8325.93412339,0.000122,2]
[347585585,1735929038474,-2022.322,0.000122,2]
[347585586,1735929038483,-10000.0,0.000122,2]
[347585587,1735929038495,-163.98927753,0.000122,2]
[347585588,1735929038505,-500.0,0.00012201,2]
[347585589,1735929038517,-2000.0,0.00012201,2]
[347585590,1735929038528,-200.0,0.00012201,2]
[347585591,1735929038538,-150.0,0.00012207,2]
[347585592,1735929038547,-150.0,0.00012213,2]
[347585593,1735929038556,-150.0,0.00012214,2]
[347585594,1735929038566,-150.0,0.00012219,2]
[347585596,1735929038575,-150.0,0.00012224,2]
[347585597,1735929038584,-150.0,0.00012232,2]
[347585598,1735929038594,-150.0,0.00012232,2]
[347585600,1735929038604,-150.0,0.00012234,2]
[347585602,1735929038613,-150.0,0.00012237,2]
[347585603,1735929038622,-150.0,0.00012237,2]
[347585605,1735929038631,-150.0,0.00012243,2]
[347585607,1735929038641,-150.0,0.00012246,2]
[347585609,1735929038650,-150.0,0.00012249,2]
[347585611,1735929038659,-160.81,0.00012251,2]
[347585613,1735929038668,-150.0,0.00012253,2]
[347585614,1735929038677,-150.0,0.00012256,2]
[347585616,1735929038686,-150.0,0.00012258,2]
[347585618,1735929038695,-150.0,0.00012269,2]
[347585620,1735929038704,-150.0,0.00012272,2]
[347585622,1735929038713,-500.0,0.00012273,2]
[347585624,1735929038722,-500.0,0.00012273,2]
[347585625,1735929038731,-869.54,0.00012273,2]
[347585627,1735929038743,-500.0,0.00012273,2]
[347585629,1735929038753,-500.0,0.00012273,2]
[347585631,1735929038762,-500.0,0.00012273,2]
[347585633,1735929038771,-500.0,0.00012273,2]
[347585635,1735929038780,-500.0,0.00012273,2]
[347585637,1735929038789,-500.0,0.00012273,2]
[347585639,1735929038798,-590.24,0.00012273,2]
[347585640,1735929038807,-601.03,0.00012273,2]
[347585642,1735929038816,-500.0,0.00012273,2]
[347585644,1735929038825,-500.0,0.00012273,2]
[347585646,1735929038834,-500.0,0.00012273,2]
[347585648,1735929038843,-500.0,0.00012273,2]
[347585649,1735929038852,-500.0,0.00012273,2]
[347585651,1735929038862,-500.0,0.00012273,2]
[347585653,1735929038871,-500.0,0.00012273,2]
[347585655,1735929038880,-841.49,0.00012273,2]
[347585657,1735929038891,-150.0,0.00012277,2]
[347585659,1735929038901,-150.0,0.00012277,2]
[347585660,1735929038910,-150.0,0.00012279,2]
[347585661,1735929038919,-150.0,0.0001228,2]
[347585662,1735929038928,-150.0,0.00012289,2]
[347585663,1735929038937,-150.0,0.0001229,2]
[347585664,1735929038947,-150.0,0.00012295,2]
[347585665,1735929038956,-500.0,0.00012298,2]
[347585666,1735929038966,-500.0,0.00012298,2]
[347585667,1735929038975,-557.027339,0.00012299,2]
[347585668,1735929038986,-391.455983,0.00012299,2]
[347585669,1735929038999,-309.3632,0.00012299,2]
[347585670,1735929039009,-500.0,0.00012299,2]
[347585671,1735929039018,-500.0,0.00012299,2]
[347585672,1735929039027,-605.08746106,0.00012299,2]
[347585673,1735929039038,-500.0,0.00012299,2]
[347585674,1735929039048,-500.0,0.00012299,2]
[347585675,1735929039058,-500.0,0.00012299,2]
[347585676,1735929039067,-500.0,0.00012299,2]
[347585677,1735929039076,-500.0,0.00012299,2]